[Event "DLM Youth 2024"]
[Site "Tuebingen"]
[Date "2024.10.03"]
[Round "2"]
[White "Sydykov, Bayastan"]
[Black "Windmueller, Simon"]
[Result "1-0"]
[ECO "B51"]
[WhiteElo "2268"]
[BlackElo "2052"]
[Annotator "RC"]
[PlyCount "71"]
[EventDate "2024.10.03"]
[EventType "team-swiss"]
[EventRounds "7"]
[EventCountry "GER"]
[SourceTitle "playchess.com"]
[Source "ChessBase"]
[SourceQuality "1"]
[TimeControl "40/5400+30:1800+30"]

1. e4 {[%emt 0:00:05]} c5 {[%emt 0:00:18]} 2. Nf3 {[%emt 0:00:23]} d6 {[%emt 0:00:10]} 3. Bb5+ {[%emt 0:00:50]} Nd7 {[%emt 0:00:26]} 4. O-O {[%emt 0:00:40]} a6 {[%emt 0:00:20]} 5. Bd3 {[%emt 0:00:38]} Ngf6 {[%emt 0:00:12]} 6. a4 {[%emt 0:02:21]} e6 {[%emt 0:00:47]} 7. Re1 {[%emt 0:01:06]} b6 {[%emt 0:00:11]} 8. c3 {[%emt 0:02:23]} Bb7 {[%emt 0:00:20]} 9. Bc2 {[%emt 0:04:26]} c4 {[%emt 0:00:16]} 10. Na3 {[%emt 0:09:48]} Qc7 {[%emt 0:02:44]} 11. Qe2 {[%emt 0:20:03]} Rc8 {[%emt 0:01:27]} 12. d3 {[%emt 0:03:17]} cxd3 {[%emt 0:00:26]} 13. Bxd3 {[%emt 0:00:17]} Nc5 {[%emt 0:01:32]} 14. Nd2 {[%emt 0:03:54]} Nxd3 {[%emt 0:00:51]} 15. Qxd3 {[%emt 0:00:02]} Be7 {[%emt 0:00:38]} 16. Nc2 {[%emt 0:20:04]} Nd7 {[%emt 0:04:59]} 17. Nd4 {[%emt 0:05:50]} Bf6 {[%emt 0:03:51]} 18. N2f3 {[%emt 0:01:58]} h6 {[%emt 0:02:09]} 19. Bd2 {[%emt 0:07:45]} O-O {[%emt 0:00:18]} 20. Qc2 {[%emt 0:07:43]} Rfd8 {[%emt 0:01:54]} 21. Ne2 {[%emt 0:03:56]} Qc4 {[%emt 0:01:31]} 22. Ng3 {[%emt 0:01:41]} Nc5 {[%emt 0:03:16]} 23. Be3 {[%emt 0:02:14]} b5 {[%emt 0:26:04]} 24. axb5 {[%emt 0:00:15]} axb5 {[%emt 0:00:04]} 25. Nd2 {[%emt 0:00:46]} Qd3 {[%emt 0:00:05]} 26. Qd1 {[%emt 0:00:31]} Ra8 {[%emt 0:13:01]} 27. Rxa8 {[%emt 0:00:30]} Rxa8 {[%emt 0:00:01]} 28. h3 {[%emt 0:00:31]} Ra2 {[%emt 0:00:27]} 29. Qg4 {[%emt 0:00:30]} Rxb2 {[%emt 0:01:11]} 30. Nh5 {[%emt 0:00:31]} Qxc3 {[%emt 0:08:21]} 31. Bxh6 {[%emt 0:00:29]} Be5 {[%emt 0:26:18]} 32. Bxg7 {[%emt 0:00:30]} Bxg7 {[%emt 0:00:21]} 33. e5 {[%emt 0:00:10]} Kf8 {[%emt 0:00:38]} 34. Qxg7+ {[%emt 0:00:06]} Ke8 {[%emt 0:00:11]} 35. Nf6+ {[%emt 0:00:29]} Kd8 {[%emt 0:00:13]} 36. exd6 {[%emt 0:00:32]} 1-0

[Event "DLM Youth 2024"]
[Site "Tuebingen"]
[Date "2024.10.03"]
[Round "2"]
[White "Nechitaylo, Nikita"]
[Black "Farokhi, Keyvan"]
[Result "1/2-1/2"]
[ECO "E51"]
[WhiteElo "2252"]
[BlackElo "2306"]
[Annotator "RC"]
[PlyCount "108"]
[EventDate "2024.10.03"]
[EventType "team-swiss"]
[EventRounds "7"]
[EventCountry "GER"]
[SourceTitle "playchess.com"]
[Source "ChessBase"]
[SourceQuality "1"]
[TimeControl "40/5400+30:1800+30"]

1. d4 {[%emt 0:00:01]} Nf6 {[%emt 0:00:05]} 2. c4 {[%emt 0:00:04]} e6 {[%emt 0:00:05]} 3. Nc3 {[%emt 0:00:04]} Bb4 {[%emt 0:00:04]} 4. e3 {[%emt 0:00:06]} O-O {[%emt 0:00:16]} 5. Bd2 {[%emt 0:00:05]} d5 {[%emt 0:00:30]} 6. Nf3 {[%emt 0:00:21]} b6 {[%emt 0:00:10]} 7. cxd5 {[%emt 0:00:03]} exd5 {[%emt 0:00:05]} 8. Bd3 {[%emt 0:00:06]} Bd6 {[%emt 0:00:07]} 9. Ne5 {[%emt 0:01:22]} c5 {[%emt 0:10:32]} 10. O-O {[%emt 0:03:24]} Ba6 {[%emt 0:02:54]} 11. Be1 {[%emt 0:17:59]} Bxd3 {[%emt 0:05:29]} 12. Qxd3 {[%emt 0:00:12]} c4 {[%emt 0:08:29]} 13. Qf5 {[%emt 0:14:23]} Qc8 {[%emt 0:09:54]} 14. Qxc8 {[%emt 0:21:46]} Rxc8 {[%emt 0:00:03]} 15. f3 {[%emt 0:01:30]} Bb4 {[%emt 0:08:24]} 16. Bh4 {[%emt 0:08:07]} Bxc3 {[%emt 0:02:28]} 17. bxc3 {[%emt 0:00:02]} Nbd7 {[%emt 0:02:05]} 18. Nxd7 {[%emt 0:08:27]} Nxd7 {[%emt 0:00:08]} 19. e4 {[%emt 0:00:06]} Re8 {[%emt 0:06:12]} 20. exd5 {[%emt 0:11:21]} Re3 {[%emt 0:00:30]} 21. Rfe1 {[%emt 0:03:12]} Rae8 {[%emt 0:05:47]} 22. Rxe3 {[%emt 0:07:54]} Rxe3 {[%emt 0:00:04]} 23. Kf2 {[%emt 0:00:40]} Re8 {[%emt 0:05:59]} 24. Rb1 {[%emt 0:00:22]} f6 {[%emt 0:00:19]} 25. Bg3 {[%emt 0:00:34]} Kf7 {[%emt 0:01:04]} 26. Bd6 {[%emt 0:00:18]} Rc8 {[%emt 0:05:05]} 27. a4 {[%emt 0:00:33]} f5 {[%emt 0:03:11]} 28. Be5 {[%emt 0:00:33]} a6 {[%emt 0:07:51]} 29. g4 {[%emt 0:00:13]} fxg4 {[%emt 0:01:29]} 30. fxg4 {[%emt 0:00:05]} g6 {[%emt 0:00:53]} 31. Kg3 {[%emt 0:01:07]} Re8 {[%emt 0:00:22]} 32. Rf1+ {[%emt 0:00:37]} Kg8 {[%emt 0:00:26]} 33. Re1 {[%emt 0:00:19]} b5 {[%emt 0:01:50]} 34. axb5 {[%emt 0:00:22]} axb5 {[%emt 0:00:03]} 35. Rb1 {[%emt 0:00:04]} Nxe5 {[%emt 0:00:23]} 36. Re1 {[%emt 0:00:53]} Rd8 {[%emt 0:00:06]} 37. Rxe5 {[%emt 0:00:09]} Kf7 {[%emt 0:03:12]} 38. d6 {[%emt 0:01:03]} b4 {[%emt 0:00:08]} 39. Re7+ {[%emt 0:00:48]} Kf6 {[%emt 0:00:26]} 40. cxb4 {[%emt 0:00:29]} Rxd6 {[%emt 0:00:13]} 41. Rxh7 {[%emt 0:05:41]} Rxd4 {[%emt 0:02:07]} 42. h4 {[%emt 0:03:13]} c3 {[%emt 0:00:47]} 43. Rc7 {[%emt 0:00:11]} Rxb4 {[%emt 0:00:06]} 44. g5+ {[%emt 0:01:29]} Ke6 {[%emt 0:00:53]} 45. Rxc3 {[%emt 0:00:06]} Kf7 {[%emt 0:00:09]} 46. Rf3+ {[%emt 0:00:27]} Kg7 {[%emt 0:00:07]} 47. Rf4 {[%emt 0:02:37]} Rb6 {[%emt 0:00:18]} 48. Rd4 {[%emt 0:00:17]} Rb5 {[%emt 0:01:05]} 49. Kf4 {[%emt 0:00:33]} Ra5 {[%emt 0:00:39]} 50. Ke4 {[%emt 0:04:02]} Rb5 {[%emt 0:00:27]} 51. Rd5 {[%emt 0:00:09]} Rb4+ {[%emt 0:00:10]} 52. Ke5 {[%emt 0:00:06]} Rxh4 {[%emt 0:00:06]} 53. Rd7+ {[%emt 0:00:02]} Kg8 {[%emt 0:00:10]} 54. Kf6 {[%emt 0:00:09]} Ra4 {[%emt 0:00:06]} 1/2-1/2

[Event "DLM Youth 2024"]
[Site "Tuebingen"]
[Date "2024.10.03"]
[Round "2"]
[White "Heinrich, John"]
[Black "Gallasch, Jonas"]
[Result "1/2-1/2"]
[ECO "D74"]
[WhiteElo "2237"]
[BlackElo "2291"]
[Annotator "RC"]
[PlyCount "83"]
[EventDate "2024.10.03"]
[EventType "team-swiss"]
[EventRounds "7"]
[EventCountry "GER"]
[SourceTitle "playchess.com"]
[Source "ChessBase"]
[SourceQuality "1"]
[TimeControl "40/5400+30:1800+30"]

1. c4 {[%emt 0:00:21]} Nf6 {[%emt 0:00:32]} 2. Nf3 {[%emt 0:00:14]} g6 {[%emt 0:00:05]} 3. d4 {[%emt 0:00:05]} Bg7 {[%emt 0:00:04]} 4. g3 {[%emt 0:00:38]} O-O {[%emt 0:00:08]} 5. Bg2 {[%emt 0:00:16]} Nc6 {[%emt 0:00:04]} 6. O-O {[%emt 0:00:48]} d5 {[%emt 0:00:13]} 7. cxd5 {[%emt 0:00:09]} Nxd5 {[%emt 0:00:04]} 8. e4 {[%emt 0:00:36]} Nb6 {[%emt 0:00:06]} 9. d5 {[%emt 0:00:03]} Na5 {[%emt 0:00:04]} 10. Qe1 {[%emt 0:00:03]} Nac4 {[%emt 0:00:07]} 11. Nc3 {[%emt 0:00:06]} e6 {[%emt 0:00:10]} 12. Bg5 {[%emt 0:00:07]} f6 {[%emt 0:00:05]} 13. Bc1 {[%emt 0:00:05]} exd5 {[%emt 0:00:09]} 14. exd5 {[%emt 0:00:17]} Nxd5 {[%emt 0:00:19]} 15. Nd4 {[%emt 0:00:11]} Nxc3 {[%emt 0:00:06]} 16. Qxc3 {[%emt 0:00:15]} Ne5 {[%emt 0:00:04]} 17. b4 {[%emt 0:03:55]} Re8 {[%emt 0:44:28]} 18. Bb2 {[%emt 0:01:00]} c6 {[%emt 0:03:04]} 19. Rfe1 {[%emt 0:05:12]} Bd7 {[%emt 0:02:55]} 20. f4 {[%emt 0:08:07]} Nf7 {[%emt 0:01:06]} 21. Nb3 {[%emt 0:04:45]} Qc7 {[%emt 0:27:40]} 22. Nc5 {[%emt 0:01:22]} Nd6 {[%emt 0:02:01]} 23. h3 {[%emt 0:25:38]} Rxe1+ {[%emt 0:01:55]} 24. Rxe1 {[%emt 0:00:10]} Re8 {[%emt 0:00:35]} 25. Rd1 {[%emt 0:01:25]} Bc8 {[%emt 0:04:18]} 26. a4 {[%emt 0:12:57]} a6 {[%emt 0:02:16]} 27. Kh2 {[%emt 0:11:16]} h5 {[%emt 0:05:42]} 28. Qd3 {[%emt 0:03:13]} Nf5 {[%emt 0:00:29]} 29. Ne4 {[%emt 0:05:33]} h4 {[%emt 0:01:30]} 30. Bc1 {[%emt 0:05:25]} hxg3+ {[%emt 0:02:09]} 31. Nxg3 {[%emt 0:00:05]} Nxg3 {[%emt 0:00:14]} 32. Qxg6 {[%emt 0:00:48]} Qf7 {[%emt 0:01:11]} 33. Qxg3 {[%emt 0:00:46]} Bf5 {[%emt 0:00:11]} 34. Bb2 {[%emt 0:00:54]} Qf8 {[%emt 0:01:57]} 35. Bf1 {[%emt 0:00:45]} b5 {[%emt 0:00:53]} 36. Rd2 {[%emt 0:01:54]} Qxb4 {[%emt 0:00:45]} 37. Rg2 {[%emt 0:00:11]} Qf8 {[%emt 0:00:07]} 38. Bd3 {[%emt 0:01:38]} Be4 {[%emt 0:01:02]} 39. Bxe4 {[%emt 0:01:44]} Rxe4 {[%emt 0:00:01]} 40. Qc3 {[%emt 0:01:53]} Rxf4 {[%emt 0:01:07]} 41. Qxc6 {[%emt 0:30:37]} Qb8 {[%emt 0:03:24]} 42. Qd5+ {[%emt 0:00:00]} 1/2-1/2

[Event "DLM Youth 2024"]
[Site "Tuebingen"]
[Date "2024.10.03"]
[Round "2"]
[White "Kocharin, Timur"]
[Black "Semling, Julius"]
[Result "1-0"]
[ECO "E04"]
[WhiteElo "2234"]
[BlackElo "2233"]
[Annotator "RC"]
[PlyCount "65"]
[EventDate "2024.10.03"]
[EventType "team-swiss"]
[EventRounds "7"]
[EventCountry "GER"]
[SourceTitle "playchess.com"]
[Source "ChessBase"]
[SourceQuality "1"]
[TimeControl "40/5400+30:1800+30"]

1. d4 {[%emt 0:01:15]} d5 {[%emt 0:01:04]} 2. c4 {[%emt 0:00:38]} e6 {[%emt 0:00:02]} 3. Nf3 {[%emt 0:00:20]} Nf6 {[%emt 0:00:14]} 4. g3 {[%emt 0:00:19]} dxc4 {[%emt 0:00:24]} 5. Bg2 {[%emt 0:00:06]} c6 {[%emt 0:00:15]} 6. Ne5 {[%emt 0:00:42]} Bb4+ {[%emt 0:00:09]} 7. Bd2 {[%emt 0:00:20]} Be7 {[%emt 0:00:03]} 8. e3 {[%emt 0:02:53]} b5 {[%emt 0:00:41]} 9. Nxc6 {[%emt 0:00:32]} Nxc6 {[%emt 0:00:04]} 10. Bxc6+ {[%emt 0:00:07]} Bd7 {[%emt 0:00:08]} 11. Bxa8 {[%emt 0:00:38]} Qxa8 {[%emt 0:00:01]} 12. f3 {[%emt 0:00:55]} e5 {[%emt 0:00:30]} 13. dxe5 {[%emt 0:00:51]} Ng4 {[%emt 0:01:25]} 14. O-O {[%emt 0:00:51]} Nxe5 {[%emt 0:00:13]} 15. Bc3 {[%emt 0:02:56]} Nd3 {[%emt 0:01:34]} 16. Qe2 {[%emt 0:02:29]} O-O {[%emt 0:05:03]} 17. Bd4 {[%emt 0:01:06]} Bh3 {[%emt 0:03:09]} 18. Rd1 {[%emt 0:00:45]} h5 {[%emt 0:02:07]} 19. a4 {[%emt 0:05:29]} h4 {[%emt 0:07:33]} 20. axb5 {[%emt 0:02:15]} Qd5 {[%emt 0:02:34]} 21. Nc3 {[%emt 0:02:34]} Qf5 {[%emt 0:05:05]} 22. Ne4 {[%emt 0:00:52]} Qg6 {[%emt 0:00:02]} 23. Rxa7 {[%emt 0:00:59]} Re8 {[%emt 0:00:17]} 24. Ra6 {[%emt 0:01:39]} Qh5 {[%emt 0:03:03]} 25. g4 {[%emt 0:04:11]} Qxb5 {[%emt 0:01:04]} 26. Rb6 {[%emt 0:00:04]} Qa5 {[%emt 0:08:01]} 27. Nf2 {[%emt 0:03:31]} Bc5 {[%emt 0:03:44]} 28. b4 {[%emt 0:01:11]} Bxb4 {[%emt 0:07:57]} 29. Rxb4 {[%emt 0:11:49]} Nxb4 {[%emt 0:07:18]} 30. Nxh3 {[%emt 0:00:28]} Nc6 {[%emt 0:00:21]} 31. Qxc4 {[%emt 0:00:18]} Ne5 {[%emt 0:01:17]} 32. Bxe5 {[%emt 0:00:27]} Qxe5 {[%emt 0:00:02]} 33. e4 {[%emt 0:01:27]} 1-0

[Event "DLM Youth 2024"]
[Site "Tuebingen"]
[Date "2024.10.03"]
[Round "2"]
[White "Mohylnyi, Stepan"]
[Black "Karle, Sam"]
[Result "1-0"]
[ECO "C45"]
[WhiteElo "2160"]
[BlackElo "2124"]
[Annotator "RC"]
[PlyCount "89"]
[EventDate "2024.10.03"]
[EventType "team-swiss"]
[EventRounds "7"]
[EventCountry "GER"]
[SourceTitle "playchess.com"]
[Source "ChessBase"]
[SourceQuality "1"]
[TimeControl "40/5400+30:1800+30"]

1. e4 {[%emt 0:00:03]} e5 {[%emt 0:00:16]} 2. Nf3 {[%emt 0:00:05]} Nc6 {[%emt 0:00:07]} 3. d4 {[%emt 0:00:03]} exd4 {[%emt 0:00:17]} 4. Nxd4 {[%emt 0:00:03]} Nf6 {[%emt 0:00:31]} 5. Nxc6 {[%emt 0:00:06]} bxc6 {[%emt 0:00:09]} 6. e5 {[%emt 0:00:02]} Qe7 {[%emt 0:00:12]} 7. Qe2 {[%emt 0:00:03]} Nd5 {[%emt 0:00:10]} 8. c4 {[%emt 0:00:03]} Nb6 {[%emt 0:00:12]} 9. Nc3 {[%emt 0:00:05]} a5 {[%emt 0:01:27]} 10. Qe4 {[%emt 0:06:57]} Qe6 {[%emt 0:12:10]} 11. Be3 {[%emt 0:05:34]} Bb4 {[%emt 0:05:38]} 12. Bxb6 {[%emt 0:05:30]} cxb6 {[%emt 0:03:13]} 13. Bd3 {[%emt 0:00:54]} d5 {[%emt 0:08:10]} 14. exd6 {[%emt 0:04:39]} Bxd6 {[%emt 0:04:02]} 15. O-O-O {[%emt 0:00:56]} Qxe4 {[%emt 0:02:22]} 16. Bxe4 {[%emt 0:00:20]} Bf4+ {[%emt 0:00:15]} 17. Kc2 {[%emt 0:04:50]} Bd7 {[%emt 0:04:09]} 18. c5 {[%emt 0:02:15]} Bc7 {[%emt 0:11:59]} 19. Nb5 {[%emt 0:04:00]} cxb5 {[%emt 0:00:11]} 20. Bxa8 {[%emt 0:00:05]} Bf5+ {[%emt 0:00:42]} 21. Kb3 {[%emt 0:00:43]} O-O {[%emt 0:03:08]} 22. Bc6 {[%emt 0:02:18]} Be6+ {[%emt 0:04:42]} 23. Bd5 {[%emt 0:01:22]} bxc5 {[%emt 0:00:13]} 24. Bxe6 {[%emt 0:00:05]} fxe6 {[%emt 0:00:11]} 25. f3 {[%emt 0:00:17]} Rf4 {[%emt 0:04:33]} 26. Rhe1 {[%emt 0:01:21]} Rc4 {[%emt 0:04:53]} 27. a3 {[%emt 0:03:49]} Bxh2 {[%emt 0:02:25]} 28. Rxe6 {[%emt 0:00:34]} a4+ {[%emt 0:00:16]} 29. Ka2 {[%emt 0:00:04]} Rc2 {[%emt 0:00:55]} 30. Re7 {[%emt 0:13:14]} h6 {[%emt 0:00:17]} 31. g4 {[%emt 0:01:11]} b4 {[%emt 0:01:45]} 32. axb4 {[%emt 0:05:25]} cxb4 {[%emt 0:00:31]} 33. Re4 {[%emt 0:07:50]} a3 {[%emt 0:02:53]} 34. Rxb4 {[%emt 0:00:39]} Rxb2+ {[%emt 0:01:45]} 35. Rxb2 {[%emt 0:00:01]} axb2 {[%emt 0:00:02]} 36. Kxb2 {[%emt 0:00:01]} Be5+ {[%emt 0:00:58]} 37. Kc2 {[%emt 0:00:39]} Kf7 {[%emt 0:00:40]} 38. Kd3 {[%emt 0:00:52]} Kg6 {[%emt 0:00:26]} 39. Ke4 {[%emt 0:00:13]} Bb2 {[%emt 0:00:17]} 40. f4 {[%emt 0:00:27]} Bc3 {[%emt 0:00:48]} 41. Rd6+ {[%emt 0:30:07]} Kh7 {[%emt 0:30:49]} 42. Kf5 {[%emt 0:00:22]} Bb2 {[%emt 0:02:12]} 43. Rd7 {[%emt 0:00:01]} Bc3 {[%emt 0:00:25]} 44. g5 {[%emt 0:00:10]} hxg5 {[%emt 0:00:15]} 45. fxg5 {[%emt 0:00:01]} 1-0

[Event "DLM Youth 2024"]
[Site "Tuebingen"]
[Date "2024.10.03"]
[Round "2"]
[White "Nunez Gregoire, Daniel"]
[Black "Shen, Tingrui"]
[Result "*"]
[ECO "D36"]
[WhiteElo "2154"]
[BlackElo "2102"]
[Annotator "RC"]
[PlyCount "72"]
[EventDate "2024.10.03"]
[EventType "team-swiss"]
[EventRounds "7"]
[EventCountry "GER"]
[SourceTitle "playchess.com"]
[Source "ChessBase"]
[SourceQuality "1"]
[TimeControl "40/5400+30:1800+30"]

1. d4 {[%emt 0:00:03]} d5 {[%emt 0:00:27]} 2. c4 {[%emt 0:00:01]} e6 {[%emt 0:00:13]} 3. Nc3 {[%emt 0:00:01]} Nf6 {[%emt 0:00:20]} 4. cxd5 {[%emt 0:00:02]} exd5 {[%emt 0:00:22]} 5. Bg5 {[%emt 0:00:09]} Be7 {[%emt 0:00:43]} 6. e3 {[%emt 0:00:07]} O-O {[%emt 0:00:20]} 7. Bd3 {[%emt 0:00:04]} c6 {[%emt 0:00:20]} 8. Qc2 {[%emt 0:00:07]} Nbd7 {[%emt 0:00:11]} 9. Nf3 {[%emt 0:00:10]} Re8 {[%emt 0:00:28]} 10. O-O {[%emt 0:00:29]} a5 {[%emt 0:02:06]} 11. Ne5 {[%emt 0:02:47]} h6 {[%emt 0:04:07]} 12. Nxd7 {[%emt 0:00:12]} Bxd7 {[%emt 0:01:06]} 13. Bxf6 {[%emt 0:01:23]} Bxf6 {[%emt 0:00:18]} 14. Na4 {[%emt 0:00:27]} Be7 {[%emt 0:02:09]} 15. Rac1 {[%emt 0:01:01]} Bd6 {[%emt 0:00:32]} 16. Bh7+ {[%emt 0:01:20]} Kh8 {[%emt 0:01:39]} 17. Bf5 {[%emt 0:00:16]} Bxf5 {[%emt 0:01:15]} 18. Qxf5 {[%emt 0:00:02]} Qc7 {[%emt 0:00:34]} 19. g3 {[%emt 0:01:56]} Re7 {[%emt 0:02:06]} 20. Rc2 {[%emt 0:02:11]} Rae8 {[%emt 0:01:06]} 21. Rfc1 {[%emt 0:00:55]} Kg8 {[%emt 0:09:37]} 22. Nc5 {[%emt 0:01:13]} Qb6 {[%emt 0:00:40]} 23. Qd3 {[%emt 0:05:22]} Bxc5 {[%emt 0:10:45]} 24. dxc5 {[%emt 0:02:25]} Qc7 {[%emt 0:02:03]} 25. Qc3 {[%emt 0:04:12]} Re4 {[%emt 0:00:38]} 26. Rd1 {[%emt 0:02:10]} Rc4 {[%emt 0:03:48]} 27. Qd3 {[%emt 0:00:45]} Ree4 {[%emt 0:03:27]} 28. Rdc1 {[%emt 0:01:48]} Rb4 {[%emt 0:03:23]} 29. a3 {[%emt 0:03:29]} Rb5 {[%emt 0:01:38]} 30. f3 {[%emt 0:03:36]} Re7 {[%emt 0:01:27]} 31. b3 {[%emt 0:02:05]} Qe5 {[%emt 0:00:39]} 32. Rc3 {[%emt 0:00:25]} Qf6 {[%emt 0:04:55]} 33. Kg2 {[%emt 0:00:55]} b6 {[%emt 0:01:34]} 34. cxb6 {[%emt 0:01:14]} Rxb6 {[%emt 0:00:49]} 35. Kf2 {[%emt 0:01:10]} Reb7 {[%emt 0:01:37]} 36. R1c2 {[%emt 0:05:14]} g6 {[%emt 0:04:58]} *

[Event "DLM Youth 2024"]
[Site "Tuebingen"]
[Date "2024.10.03"]
[Round "2"]
[White "Fuhrmann, Bahne"]
[Black "Haubold, Christian"]
[Result "1-0"]
[ECO "C26"]
[WhiteElo "2146"]
[BlackElo "2084"]
[Annotator "NA RC"]
[PlyCount "61"]
[EventDate "2024.10.03"]
[EventType "team-swiss"]
[EventRounds "7"]
[EventCountry "GER"]
[SourceTitle "playchess.com"]
[Source "ChessBase"]
[SourceQuality "1"]
[TimeControl "40/5400+30:1800+30"]

1. e4 {[%emt 0:00:02]} e5 {[%emt 0:00:05]} 2. Nc3 {[%emt 0:00:08]} Nf6 {[%emt 0:12:00]} 3. d4 {[%emt 0:00:12]} exd4 {[%emt 0:00:40]} 4. Qxd4 {[%emt 0:00:09]} Nc6 {[%emt 0:00:05]} 5. Qd3 {[%emt 0:00:04]} Bb4 {[%emt 0:09:39]} 6. Bd2 {[%emt 0:00:07]} Qe7 {[%emt 0:19:18]} 7. O-O-O {[%emt 0:03:54]} Ne5 {[%emt 0:05:58]} 8. Qg3 {[%emt 0:01:21]} Nh5 {[%emt 0:08:03]} 9. Qh3 {[%emt 0:03:17]} Bxc3 {[%emt 0:02:49]} 10. Qxc3 {[%emt 0:03:50]} Ng4 {[%emt 0:10:26]} 11. Nh3 {[%emt 0:06:24]} d6 {[%emt 0:02:46]} 12. f3 {[%emt 0:14:12]} Ne5 {[%emt 0:01:10]} 13. Nf2 {[%emt 0:02:05]} Nf6 {[%emt 0:05:31]} 14. g4 {[%emt 0:01:36]} h6 {[%emt 0:01:30]} 15. Be2 {[%emt 0:00:59]} g5 {[%emt 0:03:14]} 16. h4 {[%emt 0:05:10]} gxh4 {[%emt 0:06:24]} 17. f4 {[%emt 0:04:53]} Ng6 {[%emt 0:00:34]} 18. f5 {[%emt 0:04:10]} Ne5 {[%emt 0:01:22]} 19. Bf4 {[%emt 0:00:44]} Rh7 {[%emt 0:03:22]} 20. g5 {[%emt 0:12:31]} hxg5 {[%emt 0:01:18]} 21. Bxg5 {[%emt 0:00:13]} Nd5 {[%emt 0:01:26]} 22. Qd2 {[%emt 0:00:29]} Nf6 {[%emt 0:00:23]} 23. Bxh4 {[%emt 0:01:03]} Rxh4 {[%emt 0:02:05]} 24. Rxh4 {[%emt 0:00:17]} Kd7 {[%emt 0:00:26]} 25. Nd3 {[%emt 0:03:56]} b6 {[%emt 0:01:08]} 26. Qc3 {[%emt 0:02:07]} Nxd3+ {[%emt 0:00:55]} 27. cxd3 {[%emt 0:01:45]} Bb7 {[%emt 0:00:39]} 28. Rg1 {[%emt 0:05:55]} a5 {[%emt 0:00:39]} 29. Rh6 {[%emt 0:00:59]} Ne8 {[%emt 0:00:30]} 30. Rg8 {[%emt 0:00:50]} Rc8 {[%emt 0:00:29]} 31. f6 {[%emt 0:00:43]} 1-0

[Event "DLM Youth 2024"]
[Site "Tuebingen"]
[Date "2024.10.03"]
[Round "2"]
[White "Weber, Nikita"]
[Black "Abou Wally, Adrian"]
[Result "1-0"]
[ECO "E90"]
[WhiteElo "2130"]
[BlackElo "1991"]
[Annotator "NA RC"]
[PlyCount "63"]
[EventDate "2024.10.03"]
[EventType "team-swiss"]
[EventRounds "7"]
[EventCountry "GER"]
[SourceTitle "playchess.com"]
[Source "ChessBase"]
[SourceQuality "1"]
[TimeControl "40/5400+30:1800+30"]

1. Nf3 {[%emt 0:00:02]} Nf6 {[%emt 0:00:03]} 2. c4 {[%emt 0:00:03]} g6 {[%emt 0:00:08]} 3. Nc3 {[%emt 0:00:03]} Bg7 {[%emt 0:00:09]} 4. e4 {[%emt 0:00:02]} d6 {[%emt 0:00:34]} 5. d4 {[%emt 0:00:01]} O-O {[%emt 0:00:27]} 6. Bd3 {[%emt 0:00:01]} Nbd7 {[%emt 0:01:31]} 7. h3 {[%emt 0:00:35]} c5 {[%emt 0:00:37]} 8. d5 {[%emt 0:00:10]} a6 {[%emt 0:00:31]} 9. O-O {[%emt 0:00:49]} Rb8 {[%emt 0:00:24]} 10. a4 {[%emt 0:02:16]} b6 {[%emt 0:00:10]} 11. Bf4 {[%emt 0:09:03]} Ne8 {[%emt 0:00:14]} 12. Bh2 {[%emt 0:12:15]} Nc7 {[%emt 0:02:17]} 13. Qe2 {[%emt 0:05:30]} b5 {[%emt 0:15:14]} 14. axb5 {[%emt 0:07:49]} axb5 {[%emt 0:00:07]} 15. cxb5 {[%emt 0:01:36]} Nb6 {[%emt 0:00:44]} 16. Rab1 {[%emt 0:15:35]} f5 {[%emt 0:00:51]} 17. e5 {[%emt 0:10:03]} Kh8 {[%emt 0:31:20]} 18. Bc4 {[%emt 0:00:59]} Nxc4 {[%emt 0:15:46]} 19. Qxc4 {[%emt 0:00:07]} Nxb5 {[%emt 0:13:52]} 20. Nxb5 {[%emt 0:00:08]} Ba6 {[%emt 0:00:04]} 21. Qh4 {[%emt 0:00:26]} Bxb5 {[%emt 0:00:34]} 22. Ng5 {[%emt 0:01:00]} h6 {[%emt 0:03:05]} 23. Ne6 {[%emt 0:00:12]} Qe8 {[%emt 0:01:51]} 24. Rfe1 {[%emt 0:10:13]} Rf7 {[%emt 0:05:30]} 25. exd6 {[%emt 0:01:00]} Rb7 {[%emt 0:01:11]} 26. Nxc5 {[%emt 0:07:10]} Ra7 {[%emt 0:00:26]} 27. Be5 {[%emt 0:02:29]} Bxe5 {[%emt 0:03:42]} 28. Rxe5 {[%emt 0:00:02]} Rh7 {[%emt 0:00:33]} 29. Rbe1 {[%emt 0:00:51]} Qc8 {[%emt 0:01:23]} 30. Qd4 {[%emt 0:00:43]} Kg8 {[%emt 0:01:14]} 31. dxe7 {[%emt 0:00:22]} Be8 {[%emt 0:00:25]} 32. d6 {[%emt 0:01:14]} 1-0